bitfinex/quotes_BTCUSD_20240717
["timestamp","ask_amount","ask_price","bid_price","bid_amount"]
[1721196199080,0.00271848,65777.0,65776.0,1.91023919]
[1721196199501,0.00271848,65777.0,65776.0,1.97603919]
[1721196199892,0.00271848,65777.0,65776.0,1.96503919]
[1721196200092,0.00171848,65777.0,65776.0,1.96503919]
[1721196200299,0.00271848,65777.0,65776.0,1.97903919]
[1721196200620,0.00171848,65777.0,65776.0,1.96703919]
[1721196200902,0.00371848,65777.0,65776.0,1.99303919]
[1721196201460,0.00271848,65777.0,65776.0,1.98103919]
[1721196201826,0.00071848,65777.0,65776.0,1.95303919]
[1721196202035,0.00071848,65777.0,65776.0,1.95303911]
[1721196202570,0.00071848,65777.0,65776.0,1.82682516]
[1721196202855,0.00171848,65777.0,65776.0,1.83882516]
[1721196203208,0.00171848,65777.0,65776.0,1.82682516]
[1721196203409,0.00071848,65777.0,65776.0,1.82682516]
[1721196203609,0.00171848,65777.0,65776.0,1.83882516]
[1721196203938,0.00171848,65777.0,65776.0,2.26909422]
[1721196207524,0.00171848,65777.0,65776.0,1.96503222]
[1721196207721,0.00171848,65777.0,65776.0,2.16503222]
[1721196208327,0.00171848,65777.0,65776.0,1.96503514]
[1721196208870,0.00171848,65777.0,65776.0,2.16503514]
[1721196211486,0.00171848,65777.0,65776.0,2.03882516]
[1721196211824,0.00171848,65777.0,65776.0,2.16503252]
[1721196213187,0.00171848,65777.0,65776.0,1.96503252]
[1721196213391,0.00171848,65777.0,65776.0,2.16503252]
[1721196214091,0.00171848,65777.0,65776.0,2.46909452]
[1721196214748,0.00171848,65777.0,65776.0,2.55043688]
[1721196214955,0.00171848,65777.0,65776.0,2.46908207]
[1721196215285,0.00161848,65777.0,65776.0,2.55043718]
[1721196217320,0.00161848,65777.0,65776.0,2.53217982]
[1721196217522,0.00161848,65777.0,65776.0,2.5321797]
[1721196217892,0.00161848,65777.0,65776.0,2.40598478]
[1721196218101,0.00161848,65777.0,65776.0,2.53218002]
[1721196218303,0.00161848,65777.0,65776.0,2.68992482]
[1721196219153,0.00161848,65777.0,65776.0,2.68992421]
[1721196220000,0.00161848,65777.0,65776.0,2.68992463]
[1721196220999,0.00161848,65777.0,65776.0,2.38586263]
[1721196221201,0.00161848,65777.0,65776.0,2.22811823]
[1721196221566,0.00161848,65777.0,65776.0,2.18328602]
[1721196221845,0.00161848,65777.0,65776.0,2.48734802]
[1721196222191,0.00161848,65777.0,65776.0,2.55045022]
[1721196222798,0.00161848,65777.0,65776.0,2.53219177]
[1721196223638,0.00161848,65777.0,65776.0,2.68994322]
[1721196223847,0.00161848,65777.0,65776.0,2.86768306]
[1721196224721,0.00161848,65777.0,65776.0,2.86749104]
[1721196225235,0.00161848,65777.0,65776.0,3.56749104]
[1721196225666,0.04942936,65790.0,65789.0,1.700809]
[1721196225866,0.04942936,65790.0,65789.0,2.30108755]
[1721196226068,0.00084,65795.0,65794.0,1.063926]
[1721196226263,0.00084,65795.0,65794.0,1.34450455]
[1721196226465,0.00084,65795.0,65794.0,1.35707508]
[1721196226606,0.00084,65795.0,65794.0,1.71105408]
[1721196226806,0.00084,65795.0,65794.0,1.81105408]
[1721196227015,0.00084,65795.0,65794.0,2.11503308]
[1721196227656,0.00284,65795.0,65794.0,2.11503308]
[1721196227856,0.00284,65795.0,65794.0,2.11500967]
[1721196228248,0.00284,65795.0,65794.0,2.11800967]
[1721196228937,0.00384,65795.0,65794.0,2.11800967]
[1721196229342,0.00284,65795.0,65794.0,1.76403067]
[1721196229557,0.00084,65795.0,65794.0,1.81103067]
[1721196229743,0.00184,65795.0,65794.0,1.83803067]
[1721196229941,0.06284,65795.0,65794.0,1.78803067]
[1721196230143,0.06284,65795.0,65794.0,1.47005167]
[1721196230370,0.14514,65795.0,65794.0,0.72071193]
[1721196230724,0.14514,65795.0,65794.0,0.02657053]
[1721196230725,0.447114,65795.0,65794.0,0.02657053]
[1721196230924,0.903075,65795.0,65794.0,0.02657053]
[1721196231149,0.600101,65795.0,65794.0,0.027]
[1721196231528,0.14414,65795.0,65794.0,0.027]
[1721196231731,0.14414,65795.0,65794.0,0.178989]
[1721196231935,0.14414,65795.0,65794.0,0.027]
[1721196232139,0.14414,65795.0,65794.0,0.013]
[1721196232140,0.296127,65795.0,65794.0,0.013]
[1721196232349,0.296127,65795.0,65794.0,0.026]
[1721196232722,0.14414,65795.0,65794.0,0.013]
[1721196233090,0.14314,65795.0,65794.0,0.01257053]
[1721196233292,0.14314,65795.0,65794.0,0.151989]
[1721196233662,0.14514,65795.0,65794.0,0.151989]
[1721196234597,0.14514,65795.0,65794.0,0.16455953]
[1721196235464,0.17334019,65795.0,65794.0,0.01257053]
[1721196235850,0.17334019,65795.0,65792.0,0.151994]
[1721196236001,0.14514,65795.0,65794.0,0.01257053]
[1721196236210,0.17331492,65795.0,65793.0,0.01257478]
[1721196236423,0.14514,65795.0,65794.0,0.16455953]
[1721196236622,0.17331492,65795.0,65794.0,0.16455953]
[1721196237095,0.17731492,65795.0,65794.0,0.16455953]
[1721196237266,0.17734146,65795.0,65794.0,0.16455953]
[1721196237671,0.17734146,65795.0,65794.0,0.01257053]
[1721196238279,0.17734146,65795.0,65794.0,0.16455953]
[1721196238525,0.17734146,65795.0,65794.0,0.01257053]
[1721196238847,0.17734146,65795.0,65792.0,0.151992]
[1721196239075,0.02820146,65794.0,65792.0,0.151992]
[1721196239664,0.02820146,65794.0,65785.0,0.304016]
[1721196239896,0.02820146,65794.0,65782.0,0.30403]
[1721196239897,0.1423,65788.0,65777.0,0.472]
[1721196240094,0.152008,65786.0,65781.0,0.152017]
[1721196240315,0.152008,65786.0,65782.0,0.1]
[1721196240934,0.152008,65786.0,65785.0,0.001]
[1721196241139,0.18027746,65786.0,65785.0,0.001]
[1721196241335,0.02826946,65786.0,65785.0,0.001]
[1721196241541,0.001,65786.0,65785.0,0.001]
[1721196241763,0.02826946,65786.0,65781.0,0.152017]
[1721196241962,0.02826946,65786.0,65785.0,0.45603]
[1721196242185,0.04920503,65793.0,65792.0,0.455982]
[1721196242388,0.04920503,65793.0,65792.0,0.75997]
[1721196242657,0.081,65799.0,65794.0,0.455968]
[1721196242797,0.0621,65805.0,65794.0,0.91432874]
[1721196243007,0.0621,65805.0,65794.0,1.23087827]
[1721196243164,0.0621,65805.0,65794.0,0.92689927]
[1721196244573,0.0621,65805.0,65794.0,0.92889927]
[1721196244720,0.06604,65795.0,65794.0,0.77251753]
[1721196245139,0.06704,65795.0,65794.0,0.77951753]
[1721196246668,0.06704,65795.0,65794.0,0.78351753]
[1721196247069,0.06604,65795.0,65794.0,0.77651753]
[1721196247315,0.06604,65795.0,65794.0,0.78151753]
[1721196247657,0.06604,65795.0,65794.0,0.77651753]
[1721196247856,0.00084,65795.0,65794.0,0.78251753]
[1721196248646,0.00084,65795.0,65794.0,1.08649653]
[1721196249053,0.00084,65795.0,65794.0,1.31967827]
[1721196249472,0.00084,65795.0,65794.0,1.31567827]
[1721196249674,0.00084,65795.0,65794.0,1.31967827]
[1721196250094,0.00084,65795.0,65794.0,1.31367827]
[1721196250505,0.00084,65795.0,65794.0,1.30967827]
[1721196250707,0.00084,65795.0,65794.0,1.31567827]
[1721196251084,0.00084,65795.0,65794.0,1.32367827]
[1721196251285,0.00084,65795.0,65794.0,1.31567827]
[1721196251838,0.00084,65795.0,65794.0,1.32567827]
[1721196252133,0.00084,65795.0,65794.0,1.24687827]
[1721196253478,0.00084,65795.0,65794.0,1.42306987]
[1721196253657,0.00084,65795.0,65794.0,1.82704887]
[1721196253892,0.00084,65795.0,65794.0,1.77704887]
[1721196254862,0.00084,65795.0,65794.0,1.97064887]
[1721196255034,0.00084,65795.0,65794.0,1.96064887]
[1721196255173,0.00084,65795.0,65794.0,1.95464887]
[1721196255373,0.00084,65795.0,65794.0,2.18634887]
[1721196255580,0.00084,65795.0,65794.0,2.18633505]
[1721196255778,0.00084,65795.0,65794.0,2.18633504]
[1721196256794,0.00084,65795.0,65794.0,2.19533504]
[1721196257236,0.00084,65795.0,65794.0,2.17433504]
[1721196257436,0.00084,65795.0,65794.0,2.13633504]
[1721196257670,0.00084,65795.0,65794.0,2.19933504]
[1721196257849,0.00084,65795.0,65794.0,2.18733504]
[1721196258001,0.00084,65795.0,65794.0,2.20133373]
[1721196258209,0.00084,65795.0,65794.0,2.18833373]
[1721196258540,0.00084,65795.0,65794.0,2.20133373]
[1721196258751,0.00084,65795.0,65794.0,2.07515727]
[1721196258941,0.00084,65795.0,65794.0,2.20133373]
[1721196260003,0.00084,65795.0,65794.0,2.18833373]
[1721196260405,0.00084,65795.0,65794.0,2.20233373]
[1721196262054,0.00084,65795.0,65794.0,2.20233263]
[1721196264653,0.00084,65795.0,65794.0,2.18833263]
[1721196264849,0.00084,65795.0,65794.0,2.17433263]
[1721196265077,0.00084,65795.0,65794.0,2.18833263]
[1721196265277,0.00084,65795.0,65794.0,2.07615727]
[1721196265453,0.00084,65795.0,65794.0,2.20233267]
[1721196265654,0.00084,65795.0,65794.0,2.07615727]
[1721196265870,0.00084,65795.0,65794.0,2.20233267]
[1721196267708,0.00084,65795.0,65794.0,2.18833267]
[1721196268056,0.00084,65795.0,65794.0,1.77503267]
[1721196268600,0.00084,65795.0,65794.0,1.77503933]
[1721196268822,0.00084,65795.0,65794.0,1.78903933]
[1721196269480,0.00084,65795.0,65794.0,1.48506033]
[1721196269851,0.00084,65795.0,65794.0,1.47106033]
[1721196270049,0.00084,65795.0,65794.0,1.48506033]
[1721196270471,0.00084,65795.0,65794.0,1.47106033]
[1721196270880,0.00084,65795.0,65794.0,1.48506033]
[1721196271449,0.00084,65795.0,65794.0,1.97923933]
[1721196271593,0.00084,65795.0,65794.0,2.19893933]
[1721196271795,0.00084,65795.0,65794.0,2.19893545]
[1721196272762,0.00084,65795.0,65794.0,2.18493545]
[1721196273160,0.00084,65795.0,65794.0,2.19893545]
[1721196273631,0.00084,65795.0,65794.0,2.17093545]
[1721196274031,0.00084,65795.0,65794.0,2.19893545]
[1721196274431,0.00084,65795.0,65794.0,2.21293545]
[1721196275149,0.00084,65795.0,65794.0,2.08675727]
[1721196275340,0.00084,65795.0,65794.0,2.18493364]
[1721196275538,0.00084,65795.0,65794.0,2.19893364]
[1721196276116,0.00084,65795.0,65794.0,2.18493364]
[1721196276907,0.00084,65795.0,65794.0,2.19893364]
[1721196277331,0.00084,65795.0,65794.0,2.18493364]
[1721196277939,0.00084,65795.0,65794.0,2.19893364]
[1721196278344,0.00084,65795.0,65794.0,2.19893366]
[1721196279199,0.00084,65795.0,65794.0,1.78903366]
[1721196280255,0.00084,65795.0,65794.0,1.78903896]
[1721196281460,0.00084,65795.0,65794.0,1.83904171]
[1721196281807,0.00084,65795.0,65794.0,2.11974171]
[1721196282669,0.00084,65795.0,65794.0,2.19604171]
[1721196284716,0.00084,65795.0,65794.0,2.06985727]
[1721196284882,0.00084,65795.0,65794.0,2.19603262]
[1721196285520,0.00084,65795.0,65794.0,2.25912037]
[1721196285723,0.00084,65795.0,65794.0,2.19603262]
[1721196287900,0.00084,65795.0,65794.0,2.06985727]
[1721196288109,0.00084,65795.0,65794.0,2.1460336]
[1721196288280,0.00084,65795.0,65794.0,1.95885727]
[1721196288496,0.00084,65795.0,65794.0,2.13056821]
[1721196288826,0.00084,65795.0,65794.0,2.21191016]
[1721196289056,0.00084,65795.0,65794.0,2.19365549]
[1721196289254,0.00084,65795.0,65794.0,2.21191711]
[1721196289463,0.00084,65795.0,65794.0,2.16637555]
[1721196290083,0.00084,65795.0,65794.0,2.21637555]
[1721196290813,0.00084,65795.0,65794.0,2.19812088]
[1721196291300,0.00084,65795.0,65794.0,2.19811911]
[1721196291682,0.00084,65795.0,65794.0,2.28469694]
[1721196292495,0.00084,65795.0,65794.0,2.62161899]
[1721196292719,0.00084,65795.0,65794.0,2.71323695]
[1721196293309,0.00084,65795.0,65794.0,3.01721595]
[1721196293511,0.00084,65795.0,65794.0,3.10831383]
[1721196293894,0.00084,65795.0,65794.0,3.01721595]
[1721196294292,0.00084,65795.0,65794.0,4.94002952]
[1721196294518,0.00084,65795.0,65794.0,4.94825378]
[1721196294721,0.00084,65795.0,65794.0,4.94821775]
[1721196294927,0.00084,65795.0,65794.0,5.38889432]
[1721196295266,0.00084,65795.0,65794.0,5.25219675]
[1721196295474,0.00084,65795.0,65794.0,5.22419675]
[1721196295625,0.04966691,65808.0,65807.0,1.617635]
[1721196295971,0.04966691,65808.0,65807.0,2.26343539]
[1721196296275,0.00084,65810.0,65809.0,1.063681]
[1721196296453,0.00084,65810.0,65809.0,1.44422525]
[1721196296598,0.00084,65810.0,65809.0,1.45673214]
[1721196296797,0.00084,65810.0,65809.0,1.81064114]
[1721196297047,0.00084,65810.0,65809.0,2.79201073]
[1721196297223,0.00084,65810.0,65809.0,2.93841073]
[1721196297425,0.00084,65810.0,65809.0,2.93835463]
[1721196297631,0.00084,65810.0,65809.0,2.95134081]
[1721196298251,0.00084,65810.0,65809.0,2.93834081]
[1721196298406,0.00084,65810.0,65809.0,2.61177734]
[1721196298784,0.00084,65810.0,65809.0,2.11146834]
[1721196298919,0.00084,65810.0,65809.0,1.77464114]
[1721196299122,0.00084,65810.0,65809.0,1.98864114]
[1721196299325,0.00084,65810.0,65809.0,1.48473214]
[1721196299527,0.00084,65810.0,65809.0,1.18082314]
[1721196299729,0.00084,65810.0,65809.0,1.0264414]
[1721196299730,0.14124,65810.0,65809.0,1.0264414]
[1721196299926,0.14124,65810.0,65809.0,0.9264414]
[1721196300558,0.14124,65810.0,65809.0,1.10418789]
[1721196300756,0.14124,65810.0,65809.0,1.23035079]
[1721196300957,0.14124,65810.0,65809.0,1.38473253]
[1721196301212,0.14124,65810.0,65809.0,1.37073253]
[1721196301368,0.14124,65810.0,65809.0,1.47073253]
[1721196301552,0.14124,65810.0,65809.0,1.48473253]
[1721196301893,0.14124,65810.0,65809.0,1.48373253]
[1721196302152,0.14124,65810.0,65809.0,1.02544179]
[1721196302376,0.14124,65810.0,65809.0,0.72153279]
[1721196302568,0.14124,65810.0,65809.0,0.59536989]
[1721196303417,0.14124,65810.0,65809.0,0.89927889]
[1721196304228,0.14124,65810.0,65809.0,1.02544849]
[1721196304559,0.14124,65810.0,65809.0,1.02544598]
[1721196304879,0.14124,65810.0,65809.0,0.89927889]
[1721196305160,0.14124,65810.0,65809.0,1.17982732]
[1721196305360,0.06614,65810.0,65809.0,1.17982732]
[1721196305575,0.00084,65810.0,65809.0,1.48373632]
[1721196305780,0.00084,65810.0,65809.0,1.83764532]
[1721196305950,0.00084,65810.0,65809.0,1.78764532]
[1721196306164,0.00084,65810.0,65809.0,1.66147863]
[1721196306335,0.00084,65810.0,65809.0,1.78762841]
[1721196306544,0.00084,65810.0,65809.0,1.77462841]
[1721196306959,0.00084,65810.0,65809.0,1.77362841]
[1721196307489,0.00084,65810.0,65809.0,1.45671941]
[1721196307847,0.00084,65810.0,65809.0,1.48471941]
[1721196308252,0.00084,65810.0,65809.0,1.47071941]
[1721196309313,0.00084,65810.0,65809.0,1.45671941]
[1721196309511,0.00084,65810.0,65809.0,1.47072723]
[1721196309717,0.00084,65810.0,65809.0,1.48472723]
[1721196310369,0.00084,65810.0,65809.0,1.47072723]
[1721196310558,0.00084,65810.0,65809.0,1.48472723]
[1721196310753,0.00084,65810.0,65809.0,1.47072723]
[1721196311377,0.00084,65810.0,65809.0,1.48472723]
[1721196312427,0.00084,65810.0,65809.0,1.97663623]
[1721196312630,0.00084,65810.0,65809.0,1.96262476]
[1721196312843,0.00084,65810.0,65809.0,1.91262476]
[1721196313195,0.00084,65810.0,65809.0,1.9486244]
[1721196313398,0.00084,65810.0,65809.0,1.8986244]
[1721196313604,0.00084,65810.0,65809.0,1.75629905]
[1721196313807,0.00084,65810.0,65809.0,1.4707154]
[1721196314181,0.00084,65810.0,65809.0,1.48472046]
[1721196314364,0.00084,65810.0,65809.0,1.45672046]
[1721196314561,0.00084,65810.0,65809.0,1.47072046]
[1721196315787,0.00084,65810.0,65809.0,1.35856963]
[1721196316135,0.00084,65810.0,65809.0,1.47072094]
[1721196316337,0.00084,65810.0,65809.0,1.45672094]
[1721196316566,0.00084,65810.0,65809.0,1.47072094]
[1721196316875,0.00084,65810.0,65809.0,1.45672094]
[1721196317078,0.00084,65810.0,65809.0,1.47072094]
[1721196317282,0.00084,65810.0,65809.0,1.82462994]
[1721196317479,0.00084,65810.0,65809.0,1.47072094]
[1721196318146,0.00084,65810.0,65809.0,1.48472094]
[1721196318928,0.00084,65810.0,65809.0,1.71247863]
[1721196319092,0.00084,65810.0,65809.0,1.82462872]
[1721196319291,0.00084,65810.0,65809.0,1.83862872]
[1721196319706,0.00078208,65810.0,65809.0,1.83862872]
[1721196319943,0.00078208,65810.0,65809.0,1.85262872]
[1721196320157,0.00078208,65810.0,65809.0,1.83862872]
[1721196320559,0.00078208,65810.0,65809.0,1.85262872]
[1721196320926,0.00078208,65810.0,65809.0,1.83862872]
[1721196321328,0.00078208,65810.0,65809.0,1.85262872]
[1721196321533,0.00078208,65810.0,65809.0,1.99852872]
[1721196321785,0.00078208,65810.0,65809.0,2.25082285]
[1721196321978,0.00078208,65810.0,65809.0,1.92144775]
[1721196322217,0.00078208,65810.0,65809.0,2.58092915]
[1721196322544,0.00078208,65810.0,65809.0,2.59492915]
[1721196322747,0.00078208,65810.0,65809.0,2.58092915]
[1721196323155,0.00078208,65810.0,65809.0,2.59492915]
[1721196323916,0.00078208,65810.0,65809.0,2.79492915]
[1721196324357,0.00078208,65810.0,65809.0,3.28941748]
[1721196324560,0.00078208,65810.0,65809.0,3.22119071]
[1721196324918,0.00078208,65810.0,65809.0,3.70719071]
[1721196325122,0.00078208,65810.0,65809.0,3.72112212]
[1721196325348,0.00078208,65810.0,65809.0,5.22112212]
[1721196325547,0.00078208,65810.0,65809.0,5.23512212]
[1721196325762,0.00078208,65810.0,65809.0,5.22112212]
[1721196326109,0.00078208,65810.0,65809.0,5.23512212]
[1721196326312,1e-08,65810.0,65809.0,5.53903112]
[1721196326456,1e-08,65810.0,65809.0,5.52503112]
[1721196326679,1e-08,65810.0,65809.0,5.22112212]
[1721196327040,1e-08,65810.0,65809.0,5.52503112]
[1721196327239,1e-08,65810.0,65809.0,5.52148791]
[1721196327862,1e-08,65810.0,65809.0,5.53548791]
[1721196328292,1e-08,65810.0,65809.0,5.14582975]
[1721196328496,1e-08,65810.0,65809.0,5.52419179]
[1721196328650,1e-08,65810.0,65809.0,5.51019179]
[1721196328848,1e-08,65810.0,65809.0,5.62379878]
[1721196329047,1e-08,65810.0,65809.0,5.52419179]
[1721196329248,1e-08,65810.0,65809.0,5.51019179]
[1721196329457,1e-08,65810.0,65809.0,5.20628279]
[1721196329655,1e-08,65810.0,65809.0,5.23428279]
[1721196329863,1e-08,65810.0,65809.0,3.73428279]
[1721196330068,1e-08,65810.0,65809.0,3.52516062]
[1721196330267,1e-08,65810.0,65809.0,1.97378543]
[1721196330512,1e-08,65810.0,65809.0,1.98778543]
[1721196330859,1e-08,65810.0,65809.0,1.80603453]
[1721196331070,1e-08,65810.0,65809.0,1.99203453]
[1721196331390,1e-08,65810.0,65809.0,2.00603453]
[1721196331657,1e-08,65810.0,65809.0,1.98780614]
[1721196332424,1e-08,65810.0,65809.0,1.97380614]
[1721196332624,0.06340001,65810.0,65809.0,1.97380614]
[1721196332846,0.06340001,65810.0,65809.0,1.98780614]
[1721196333050,0.05744077,65810.0,65809.0,1.98780614]
[1721196333787,0.05744077,65810.0,65809.0,1.78780614]
[1721196334071,0.05744077,65810.0,65809.0,1.98780614]
[1721196334272,0.05744077,65810.0,65809.0,1.78780614]
[1721196334621,0.05744077,65810.0,65809.0,1.66166475]
[1721196334822,0.05744077,65810.0,65809.0,1.78781417]
[1721196335025,0.05744077,65810.0,65809.0,1.66166475]
[1721196335222,0.05744077,65810.0,65809.0,1.78781417]
[1721196335427,0.05744077,65810.0,65809.0,1.48390517]
[1721196335669,0.05744077,65810.0,65809.0,1.46990517]
[1721196335869,0.05744077,65810.0,65809.0,1.45590517]
[1721196336080,0.05744077,65810.0,65809.0,1.46990517]
[1721196336247,0.05744077,65810.0,65809.0,1.48390517]
[1721196337288,0.05744077,65810.0,65809.0,1.68390517]
[1721196337488,0.05744077,65810.0,65809.0,1.48390517]
[1721196337889,0.05744077,65810.0,65809.0,1.48391549]
[1721196338153,0.05744077,65810.0,65809.0,1.48391525]
[1721196339777,0.07874,65811.0,65810.0,1.499872]
[1721196339778,0.00084,65811.0,65810.0,1.499872]
[1721196340148,0.00084,65811.0,65810.0,1.97479518]
[1721196340320,0.00084,65811.0,65810.0,1.97202421]
[1721196340623,0.00084,65811.0,65810.0,1.89484942]
[1721196341132,0.00084,65811.0,65810.0,1.78268992]
[1721196342073,0.00084,65811.0,65810.0,1.73268992]
[1721196342272,0.00084,65811.0,65810.0,1.79668992]
[1721196343512,0.00084,65811.0,65810.0,1.66438992]
[1721196344528,0.06524,65811.0,65810.0,1.66438992]
[1721196344708,0.00084,65811.0,65810.0,1.66438992]
[1721196345693,0.00084,65811.0,65810.0,1.85738992]
[1721196345896,0.00084,65811.0,65810.0,2.23846971]
[1721196346464,0.00084,65811.0,65810.0,2.16129492]
[1721196347542,0.00084,65811.0,65810.0,2.20954769]
[1721196347950,0.00084,65811.0,65810.0,2.16406589]
[1721196348153,0.00084,65811.0,65810.0,1.86016089]
[1721196348471,0.00084,65811.0,65810.0,1.91403269]
[1721196348986,0.00084,65811.0,65810.0,2.21793769]
[1721196350038,0.00084,65811.0,65810.0,1.91403269]
[1721196350254,0.00084,65811.0,65810.0,1.91404252]
[1721196350431,0.00084,65811.0,65810.0,1.84847155]
[1721196350798,0.00084,65811.0,65810.0,3.34847155]
[1721196351337,0.00084,65811.0,65810.0,3.42911896]
[1721196352182,0.00084,65811.0,65810.0,3.37911896]
[1721196352412,0.00084,65811.0,65810.0,3.42911896]
[1721196352940,0.00084,65811.0,65810.0,3.49287133]
[1721196353772,0.00084,65811.0,65810.0,3.49287306]
[1721196353945,0.00084,65811.0,65810.0,1.55876806]
[1721196354185,0.00084,65811.0,65810.0,1.48662465]
[1721196355195,0.07904,65811.0,65810.0,1.48662465]
[1721196356895,0.07904,65811.0,65810.0,1.48664093]
[1721196360090,0.07904,65811.0,65810.0,1.48664092]
[1721196360500,0.00084,65811.0,65810.0,1.48664092]
[1721196362310,0.00084,65811.0,65810.0,1.18365992]
[1721196362531,0.00084,65811.0,65810.0,1.05750392]
[1721196362704,0.00084,65811.0,65810.0,1.18366388]
[1721196363024,0.00084,65811.0,65810.0,1.18366579]
[1721196364956,0.00084,65811.0,65810.0,0.72537905]
[1721196365181,0.14194,65811.0,65810.0,0.16952205]
[1721196365376,0.14194,65811.0,65810.0,0.04336018]
[1721196365377,0.59779,65811.0,65810.0,0.04336018]
[1721196366208,1.05607174,65811.0,65810.0,0.04336018]
[1721196366421,1.05607174,65811.0,65788.0,0.472]
[1721196366422,0.00277097,65810.0,65788.0,0.472]
[1721196366621,0.00277097,65810.0,65782.0,0.17583637]
[1721196366622,0.1418,65794.0,65792.0,0.151993]
[1721196366994,0.1418,65794.0,65783.0,0.776029]
[1721196366995,0.1418,65794.0,65793.0,1.05399926]
[1721196367419,0.0655,65794.0,65793.0,1.05399926]
[1721196367622,0.0655,65794.0,65793.0,0.62381386]
[1721196367801,0.0655,65794.0,65793.0,0.92779686]
[1721196368383,0.0655,65794.0,65793.0,0.62381386]
[1721196369374,0.1458,65794.0,65793.0,0.01545812]
[1721196369795,0.1468,65794.0,65793.0,0.02045812]
[1721196369993,0.1468,65794.0,65793.0,0.17244912]
[1721196370769,0.1458,65794.0,65793.0,0.16544912]
[1721196370907,0.1458,65794.0,65793.0,0.17044912]
[1721196371108,0.1458,65794.0,65793.0,0.47443212]
[1721196371313,0.0655,65794.0,65793.0,0.93279686]
[1721196371541,0.0655,65794.0,65793.0,1.23677986]
[1721196372090,0.0655,65794.0,65793.0,1.24177986]
[1721196372296,0.0655,65794.0,65793.0,1.23677986]
[1721196372636,0.0655,65794.0,65793.0,1.24377986]
[1721196372843,0.0809,65799.0,65798.0,0.45594]
[1721196373084,0.0809,65799.0,65798.0,0.4693825]
[1721196373335,0.0628,65800.0,65799.0,0.455932]
[1721196373448,0.00277097,65805.0,65804.0,0.455898]
[1721196373647,0.04970159,65806.0,65804.0,0.31735576]
[1721196373854,0.076,65807.0,65804.0,0.31735576]
[1721196373855,0.076,65807.0,65806.0,0.151961]
[1721196374075,0.1377,65807.0,65806.0,0.151961]
[1721196374271,0.1377,65807.0,65806.0,0.455884]
[1721196375567,0.06184,65811.0,65810.0,0.455857]
[1721196375790,0.06184,65811.0,65810.0,0.759762]
[1721196375977,0.06184,65811.0,65810.0,1.063667]
[1721196376597,0.07084,65811.0,65810.0,1.064667]
[1721196376908,0.00984,65811.0,65810.0,1.07807203]
[1721196377342,0.00084,65811.0,65810.0,1.07707203]
[1721196377715,0.00084,65811.0,65810.0,1.23145377]
[1721196378368,0.00084,65811.0,65810.0,1.33145377]
[1721196378599,0.00184,65811.0,65810.0,1.33145377]
[1721196379298,0.00184,65811.0,65810.0,1.45760808]
[1721196379414,0.00184,65811.0,65810.0,1.81151308]
[1721196379619,0.00184,65811.0,65810.0,2.11541808]
[1721196379881,0.00184,65811.0,65810.0,1.76151308]
[1721196380085,0.00084,65811.0,65810.0,1.96151308]
[1721196380288,0.00184,65811.0,65810.0,1.96151308]
[1721196380828,0.00184,65811.0,65810.0,1.97551308]
[1721196381040,0.00184,65811.0,65810.0,1.97751308]
[1721196381266,0.00084,65811.0,65810.0,1.96350882]
[1721196381468,0.00084,65811.0,65810.0,1.97550882]
[1721196381665,0.00084,65811.0,65810.0,1.84935877]
[1721196381879,0.00084,65811.0,65810.0,1.97550932]
[1721196382714,0.00084,65811.0,65810.0,1.97550615]
[1721196382840,0.00084,65811.0,65810.0,1.98950615]
[1721196383277,0.00184,65811.0,65810.0,2.00350615]
[1721196383566,0.00184,65811.0,65810.0,1.97550615]
[1721196383936,0.00284,65811.0,65810.0,1.98950615]
[1721196384144,0.00184,65811.0,65810.0,1.97550615]
[1721196384517,0.00284,65811.0,65810.0,2.1344084]
[1721196384723,0.00184,65811.0,65810.0,2.1204084]
[1721196385512,0.00184,65811.0,65810.0,2.1704084]
[1721196385757,0.00184,65811.0,65810.0,2.1204084]
[1721196385956,0.00184,65811.0,65810.0,2.1344084]
[1721196387057,0.00184,65811.0,65810.0,2.1704084]
[1721196387247,0.00084,65811.0,65810.0,2.1204084]
[1721196387453,0.00084,65811.0,65810.0,2.1064084]
[1721196387867,0.00084,65811.0,65810.0,2.10640513]
[1721196388356,0.00084,65811.0,65810.0,2.11479513]
[1721196388656,0.00184,65811.0,65810.0,2.14279513]
[1721196390136,0.00284,65811.0,65810.0,2.14279513]
[1721196390543,0.00284,65811.0,65810.0,2.19279513]
[1721196390952,0.00084,65811.0,65810.0,2.16479512]
[1721196391157,0.00084,65811.0,65810.0,2.80485546]
[1721196391353,0.00837,65812.0,65810.0,2.80485546]
[1721196391354,0.00837,65812.0,65811.0,1.55945]
[1721196391579,0.00837,65812.0,65811.0,2.07114492]
[1721196391799,0.00837,65812.0,65811.0,2.08454683]
[1721196392133,0.00837,65812.0,65811.0,2.56118]
[1721196392535,0.00837,65812.0,65811.0,2.25728]
[1721196392731,0.00837,65812.0,65811.0,2.20728]
[1721196392935,0.00837,65812.0,65811.0,2.42128]
[1721196393993,0.00837,65812.0,65811.0,2.23063365]
[1721196394336,0.00837,65812.0,65811.0,2.37077105]
[1721196394467,0.00837,65812.0,65811.0,2.35677105]
[1721196394678,0.00837,65812.0,65811.0,2.37077105]
[1721196394902,0.00837,65812.0,65811.0,2.17077105]
[1721196395110,0.00837,65812.0,65811.0,2.42077105]
[1721196395311,0.00837,65812.0,65811.0,2.46977105]
[1721196395474,0.00837,65812.0,65811.0,2.48377105]
[1721196397162,0.00837,65812.0,65811.0,2.4837613]
[1721196398679,0.00837,65812.0,65811.0,2.50200893]
[1721196398881,0.00837,65812.0,65811.0,2.4837613]
[1721196399310,0.00837,65812.0,65811.0,2.50200837]
[1721196400135,0.00837,65812.0,65811.0,2.4837613]
[1721196400518,0.00837,65812.0,65811.0,3.18375952]
[1721196403068,0.00837,65812.0,65811.0,3.24682252]
[1721196403317,0.00837,65812.0,65811.0,3.2468233]
[1721196403522,0.00837,65812.0,65811.0,2.54682499]
[1721196403735,0.00837,65812.0,65811.0,2.48376121]
[1721196404420,0.00837,65812.0,65811.0,2.54682512]
[1721196405204,0.00837,65812.0,65811.0,2.73601647]
[1721196405983,0.00837,65812.0,65811.0,3.43601647]
[1721196406539,0.00837,65812.0,65811.0,3.43601478]
[1721196407126,0.00837,65812.0,65811.0,3.59367393]
[1721196407361,0.00837,65812.0,65811.0,3.59367407]
[1721196408343,0.00837,65812.0,65811.0,3.59367393]